bitfinex/quotes_SOLUSD_20241117
["timestamp","ask_amount","ask_price","bid_price","bid_amount"]
[1731832789289,3.3229,240.75,240.62,0.1]
[1731832789495,3.3229,240.75,240.6,0.1]
[1731832789708,3.3229,240.75,240.58,20.25367826]
[1731832789883,23.776884,240.74,240.57,10.3917]
[1731832790290,23.776884,240.69,240.5,14.5525]
[1731832790487,68.211084,240.67,240.5,30.54827826]
[1731832790681,23.776884,240.65,240.5,10.3946]
[1731832790885,23.776884,240.65,240.46,0.1]
[1731832791105,23.776884,240.63,240.46,0.1]
[1731832791802,23.776884,240.61,240.46,0.1]
[1731832792488,23.776884,240.57,240.39,12.36]
[1731832792801,23.776884,240.53,240.35,20.15367826]
[1731832793013,50.5755,240.54,240.34,1676.2868114]
[1731832793014,43.776884,240.5,240.34,1676.2868114]
[1731832793314,13.1543,240.52,240.38,20.15367826]
[1731832793929,44.92,240.5,240.34,1676.2868114]
[1731832794090,20.0,240.51,240.34,1700.60108966]
[1731832794295,43.776884,240.51,240.34,1700.60108966]
[1731832794814,23.776884,240.49,240.34,1676.2868114]
[1731832795392,23.776884,240.49,240.36,20.15367826]
[1731832795594,3.3264,240.5,240.34,1676.3868114]
[1731832795595,3.3264,240.5,240.4,20.15367826]
[1731832795896,3.3264,240.5,240.38,20.15367826]
[1731832796306,3.3264,240.5,240.4,20.15367826]
[1731832796496,3.3259,240.53,240.4,20.15367826]
[1731832796697,23.776884,240.52,240.38,20.15367826]
[1731832797514,23.776884,240.5,240.36,20.15367826]
[1731832799315,23.776884,240.48,240.36,20.15367826]
[1731832800820,23.776884,240.48,240.36,12.64053619]
[1731832801015,27.103284,240.5,240.38,12.64053619]
[1731832801198,3.3264,240.5,240.38,12.64053619]
[1731832802315,33.9013,240.54,240.46,12.64053619]
[1731832802517,3.3258,240.54,240.46,12.64053619]
[1731832802720,3.3258,240.54,240.35,14.5618]
[1731832802923,11.6404,240.54,240.38,12.64053619]
[1731832803100,19.9518,240.58,240.38,12.64053619]
[1731832803303,11.6384,240.58,240.44,12.64053619]
[1731832803502,11.6384,240.58,240.42,12.64053619]
[1731832803906,36.5584,240.58,240.38,14.5601]
[1731832804220,36.5584,240.58,240.4,12.64053619]
[1731832804221,11.6384,240.58,240.4,12.64053619]
[1731832804419,3.3252,240.58,240.46,12.64053619]
[1731832804808,3.3252,240.58,240.42,12.64053619]
[1731832805018,30.5755,240.61,240.42,12.64053619]
[1731832805221,3.325,240.6,240.46,12.64053619]
[1731832805415,3.325,240.6,240.44,12.64053619]
[1731832805722,23.325,240.6,240.44,12.64053619]
[1731832806603,23.325,240.6,240.42,39.55823619]
[1731832807028,23.776884,240.57,240.42,39.55823619]
[1731832807803,23.776884,240.55,240.4,16.80013619]
[1731832808913,23.776884,240.53,240.38,12.64053619]
[1731832809224,3.3261,240.52,240.39,4.1599]
[1731832809404,3.3261,240.52,240.38,12.64053619]
[1731832809830,3.325,240.6,240.45,12.64053619]
[1731832810627,30.5755,240.61,240.49,12.64053619]
[1731832810833,30.5755,240.61,240.54,12.64053619]
[1731832811138,3.3232,240.73,240.55,14.5499]
[1731832811319,3.3232,240.73,240.58,12.64053619]
[1731832811508,3.3232,240.73,240.6,12.64053619]
[1731832811915,3.3232,240.73,240.58,12.64053619]
[1731832812233,3.3232,240.73,240.6,12.64053619]
[1731832812431,3.3232,240.73,240.62,12.64053619]
[1731832812626,3.3232,240.73,240.64,12.64053619]
[1731832812827,3.3232,240.73,240.62,20.17779715]
[1731832813341,3.3232,240.73,240.62,24.33359715]
[1731832813633,3.3232,240.73,240.62,34.72339715]
[1731832814130,3.3232,240.73,240.58,24.33439715]
[1731832814430,3.3232,240.73,240.62,20.17779715]
[1731832815226,3.3232,240.73,240.6,20.17779715]
[1731832815612,3.3232,240.73,240.56,20.17779715]
[1731832815613,23.776884,240.72,240.56,20.17779715]
[1731832815812,23.776884,240.72,240.54,20.17779715]
[1731832816013,23.776884,240.72,240.53,34.72859715]
[1731832816233,23.776884,240.7,240.53,34.72859715]
[1731832816936,3.3237,240.69,240.55,20.17779715]
[1731832817527,3.3237,240.69,240.57,20.17779715]
[1731832817727,3.3232,240.73,240.63,20.17779715]
[1731832818112,30.5755,240.74,240.67,20.17779715]
[1731832818317,30.0278,240.82,240.67,20.17779715]
[1731832818539,3.3221,240.81,240.67,20.17779715]
[1731832819037,3.3221,240.81,240.71,20.17779715]
[1731832819238,3.3221,240.81,240.64,20.17779715]
[1731832819446,11.6274,240.81,240.64,20.17779715]
[1731832820516,53.158,240.81,240.6,10.3906]
[1731832820736,44.92,240.8,240.6,10.3906]
[1731832820929,44.92,240.78,240.58,20.17779715]
[1731832821132,20.0,240.76,240.58,20.17779715]
[1731832822335,20.0,240.74,240.58,20.17779715]
[1731832822641,27.100084,240.73,240.58,20.17779715]
[1731832823345,20.0,240.72,240.56,20.17779715]
[1731832823546,20.0,240.72,240.54,10.3931]
[1731832823547,23.776884,240.71,240.54,34.72819715]
[1731832823727,23.776884,240.71,240.54,30.57089715]
[1731832824129,30.9301,240.69,240.51,32.53779715]
[1731832824445,23.776884,240.67,240.51,20.17779715]
[1731832824636,20.0,240.68,240.48,10.3956]
[1731832824637,23.776884,240.65,240.49,20.17779715]
[1731832824937,3.3241,240.66,240.51,20.17779715]
[1731832824938,11.6345,240.66,240.51,20.17779715]
[1731832825519,3.3241,240.66,240.55,20.17779715]
[1731832825941,3.3241,240.66,240.51,20.17779715]
[1731832826152,11.6345,240.66,240.51,20.17779715]
[1731832826318,24.92,240.64,240.47,20.17779715]
[1731832826528,3.3247,240.62,240.47,20.17779715]
[1731832826735,23.776884,240.61,240.47,20.17779715]
[1731832828139,23.776884,240.61,240.43,10.398]
[1731832828344,23.776884,240.59,240.43,34.73499715]
[1731832828850,3.3252,240.58,240.43,34.73499715]
[1731832829149,3.3252,240.58,240.43,30.57579715]
[1731832829528,3.3252,240.58,240.47,20.17779715]
[1731832829738,3.3252,240.58,240.43,10.398]
[1731832829739,3.3252,240.58,240.45,20.17779715]
[1731832830449,23.776884,240.57,240.45,20.17779715]
[1731832830628,30.9301,240.58,240.45,20.17779715]
[1731832831056,23.776884,240.57,240.45,20.17779715]
[1731832831242,30.9301,240.58,240.45,24.33649715]
[1731832831434,30.9301,240.58,240.47,20.17779715]
[1731832832122,23.776884,240.57,240.43,30.57579715]
[1731832832627,3.3255,240.56,240.43,30.57579715]
[1731832833527,3.3255,240.56,240.45,20.17779715]
[1731832834243,23.776884,240.55,240.37,30.57809715]
[1731832834447,23.776884,240.51,240.37,30.57809715]
[1731832834760,68.696884,240.44,240.34,1676.2868114]
[1731832834936,23.776884,240.4,240.34,1676.2868114]
[1731832835137,13.2909,240.43,240.34,1676.2868114]
[1731832835646,23.776884,240.42,240.34,1676.2868114]
[1731832836430,13.2909,240.43,240.34,1676.2868114]
[1731832836652,23.776884,240.41,240.34,1676.2868114]
[1731832836837,23.776884,240.38,240.34,1642.9535114]
[1731832837039,43.776884,240.35,240.34,1609.6202114]
[1731832837261,97.775084,240.35,240.34,1609.6202114]
[1731832837433,75.720084,240.35,240.34,1567.2087114]
[1731832837847,68.696884,240.35,240.34,1536.4155114]
[1731832838147,45.27098,240.35,240.34,1535.6925114]
[1731832838353,45.27098,240.35,240.34,1502.3592114]
[1731832838354,51.26693336,240.35,240.34,1502.3592114]
[1731832838736,54.59533336,240.35,240.34,1502.3592114]
[1731832838937,28.2484,240.35,240.34,1502.3592114]
[1731832839132,28.2484,240.35,240.34,1440.64371836]
[1731832840937,34.59533336,240.35,240.34,1424.49069173]
[1731832841146,78.37221736,240.35,240.34,1424.49069173]
[1731832841342,34.15067874,240.35,240.34,1424.49069173]
[1731832841539,57.92756274,240.35,240.34,1362.77519869]
[1731832841742,88.02756274,240.35,240.34,1362.77519869]
[1731832842048,87.92756274,240.35,240.34,1362.77519869]
[1731832842239,64.15067874,240.35,240.34,1362.77519869]
[1731832842434,28.2484,240.35,240.34,1362.77519869]
[1731832843334,3.3284,240.35,240.34,1362.77519869]
[1731832845060,24.92,240.38,240.34,1362.77519869]
[1731832845942,24.92,240.36,240.34,1362.77519869]
[1731832846547,44.92,240.35,240.34,1362.77519869]
[1731832846844,68.696884,240.35,240.34,1362.77519869]
[1731832847062,72.025284,240.35,240.34,1362.77519869]
[1731832847358,28.2484,240.35,240.34,1362.77519869]
[1731832852941,72.025284,240.35,240.34,1362.77519869]
[1731832853141,78.5418519,240.35,240.34,1362.77519869]
[1731832856145,78.8928319,240.35,240.34,1362.77519869]
[1731832856748,114.88878526,240.35,240.34,1362.77519869]
[1731832856941,125.39988444,240.35,240.34,1306.90851752]
[1731832857645,125.39988444,240.35,240.34,1275.92601752]
[1731832858041,125.39988444,240.35,240.34,1259.53531752]
[1731832858254,125.31988444,240.35,240.34,1259.53531752]
[1731832858455,125.39988444,240.35,240.34,1259.53531752]
[1731832858858,104.87522982,240.35,240.34,1259.53531752]
[1731832859061,64.7649679,240.35,240.34,1259.53531752]
[1731832859366,24.92,240.4,240.34,1259.53531752]
[1731832859672,6.51490507,240.43,240.34,1259.53531752]
[1731832860260,0.1,240.41,240.34,1259.53531752]
[1731832860467,4.81768302,240.42,240.34,1259.53531752]
[1731832861271,4.81768302,240.5,240.34,1259.53531752]
[1731832861573,6.51406159,240.48,240.34,1259.53531752]
[1731832861942,0.1,240.46,240.34,1259.53531752]
[1731832862265,0.1,240.38,240.34,1259.53531752]
[1731832862570,0.1,240.4,240.34,1259.53531752]
[1731832862738,11.6452,240.44,240.34,1259.53531752]
[1731832863248,3.3272,240.44,240.34,1279.71311467]
[1731832863945,6.51314877,240.52,240.34,1279.71311467]
[1731832863946,3.3265,240.49,240.4,20.17779715]
[1731832864264,3.3265,240.49,240.42,20.17779715]
[1731832864764,8.3141,240.56,240.4,20.17779715]
[1731832864965,14.18939394,240.56,240.37,43.7869]
[1731832865174,20.0,240.54,240.37,43.7869]
[1731832865343,16.85756681,240.55,240.39,20.17779715]
[1731832865661,8.3141,240.56,240.37,63.96469715]
[1731832865855,6.16458985,240.55,240.37,63.96469715]
[1731832866259,13.13178302,240.56,240.39,20.17779715]
[1731832866669,13.13178302,240.56,240.37,43.7869]
[1731832866670,14.28939394,240.56,240.37,43.7869]
[1731832866958,10.1853,240.54,240.37,43.7869]
[1731832867556,20.0,240.53,240.37,43.7869]
[1731832868271,2.9103,240.52,240.37,43.7869]
[1731832868980,20.0,240.51,240.37,43.7869]
[1731832869571,20.0,240.51,240.38,20.17779715]
[1731832870141,2.9106,240.5,240.37,43.7869]
[1731832870753,2.9106,240.5,240.38,20.17779715]
[1731832871573,2.9106,240.5,240.38,24.33779715]
[1731832871951,2.9106,240.5,240.38,20.17779715]
[1731832872152,7.2756,240.53,240.37,43.7869]
[1731832872369,20.0,240.52,240.37,43.7869]
[1731832872775,36.85756681,240.52,240.37,43.7869]
[1731832872953,24.81768302,240.52,240.37,43.7869]
[1731832873273,20.0,240.52,240.38,20.17779715]
[1731832873457,20.0,240.52,240.37,47.947]
[1731832873874,2.9099,240.55,240.44,20.17779715]
[1731832874061,2.9097,240.58,240.49,12.4266]
[1731832874363,7.2719,240.66,240.49,12.4266]
[1731832874753,12.08958302,240.66,240.49,12.4266]
[1731832875253,18.25417287,240.66,240.49,12.4266]
[1731832875581,4.81768302,240.65,240.49,12.4266]
[1731832875973,4.81768302,240.65,240.5,31.1158]
[1731832876154,19.31178379,240.66,240.5,31.1158]
[1731832876155,7.2719,240.66,240.5,51.29359715]
[1731832876358,10.1805,240.66,240.5,31.1158]
[1731832876754,2.9086,240.66,240.51,10.3945]
[1731832876958,2.9086,240.66,240.57,20.17779715]
[1731832877282,2.908,240.71,240.57,20.17779715]
[1731832877571,7.2665,240.84,240.65,20.17779715]
[1731832877774,7.2665,240.84,240.68,20.17779715]
[1731832878352,10.1729,240.84,240.68,20.17779715]
[1731832878583,2.9064,240.84,240.73,31.1158]
[1731832878880,2.9064,240.84,240.74,20.17779715]
[1731832879055,6.50181704,240.93,240.74,20.17779715]
[1731832879256,2.9055,240.92,240.76,20.17779715]
[1731832879578,2.9053,240.94,240.8,20.17779715]
[1731832879983,2.9053,240.94,240.78,20.17779715]
[1731832880351,0.04611701,240.96,240.78,20.17779715]
[1731832880671,0.04611701,240.96,240.73,31.1158]
[1731832880672,2.95111701,240.96,240.77,4.1531]
[1731832881078,2.95111701,240.96,240.78,20.17779715]
[1731832881386,22.95111701,240.96,240.78,20.17779715]
[1731832881677,2.95111701,240.96,240.78,20.17779715]
[1731832882556,0.04611701,240.96,240.89,31.1158]
[1731832883599,60.97951701,241.0,240.96,12.4266]
[1731832883759,14.31291701,241.0,240.99,20.17779715]
[1731832883957,14.31291701,241.0,240.99,43.95468115]
[1731832884159,31.4432,241.36,241.0,23.776884]
[1731832884357,2.9004,241.34,241.08,23.776884]
[1731832884584,2.9004,241.34,241.17,20.17779715]
[1731832884783,2.9004,241.34,241.1,0.1]
[1731832884784,9.39223662,241.34,241.11,31.1158]
[1731832885076,0.08,241.31,241.05,20.17779715]
[1731832885374,13.74293662,241.34,241.11,20.17779715]
[1731832885681,6.49183662,241.34,241.16,23.776884]
[1731832885883,12.8368,241.41,241.17,20.17779715]
[1731832886180,0.08,241.37,241.09,20.17779715]
[1731832886388,10.1507,241.36,241.1,23.776884]
[1731832886879,10.1507,241.36,241.09,20.17779715]
[1731832886880,0.08,241.35,241.09,20.17779715]
[1731832887092,10.1507,241.36,241.11,20.17779715]
[1731832887377,20.0,241.34,241.07,20.17779715]
[1731832887581,20.0,241.32,241.07,20.17779715]
[1731832888050,20.0,241.3,241.05,20.17779715]
[1731832888256,6.4906269,241.41,241.15,20.17779715]
[1731832888563,10.149,241.4,241.16,27.01988103]
[1731832888776,24.7477,241.4,241.12,20.17779715]
[1731832888965,0.08,241.36,241.11,12.4266]
[1731832889166,0.08,241.33,241.04,20.17779715]
[1731832889372,12.9168,241.35,241.06,20.17779715]
[1731832889568,0.08,241.31,241.0,51.29359715]
[1731832889860,20.0,241.3,241.02,20.17779715]
[1731832890261,20.0,241.28,241.0,51.29359715]
[1731832890462,20.0,241.26,241.0,51.29359715]
[1731832890682,20.0,241.24,240.99,12.4266]
[1731832891083,20.0,241.22,240.99,12.4266]
[1731832891460,20.0,241.2,240.92,20.17779715]
[1731832891672,20.0,241.18,240.91,31.1158]
[1731832891894,20.0,241.18,240.94,20.27779715]
[1731832892173,20.0,241.24,240.96,20.17779715]
[1731832892382,10.1561,241.23,240.96,20.17779715]
[1731832892591,20.0,241.22,240.94,20.17779715]
[1731832892757,20.0,241.22,240.95,0.1]
[1731832892954,20.0,241.22,240.95,23.876884]
[1731832893184,20.0,241.2,240.95,0.1]
[1731832893484,20.0,241.2,240.96,20.17779715]
[1731832893658,20.0,241.2,240.96,20.27779715]
[1731832893859,20.0,241.22,241.0,20.17779715]
[1731832894057,10.1561,241.23,241.0,20.17779715]
[1731832894058,10.1561,241.23,241.02,20.17779715]
[1731832894378,10.1561,241.23,240.99,23.776884]
[1731832894379,7.2544,241.23,240.99,23.776884]
[1731832894681,7.2544,241.23,240.92,20.17779715]
[1731832895080,12.6506,241.22,240.9,32.60439715]
[1731832895464,20.25098,241.21,240.9,32.60439715]
[1731832895672,20.0,241.15,240.85,20.17779715]
[1731832895866,20.0,241.13,240.85,20.17779715]
[1731832896069,20.0,241.15,240.85,20.17779715]
[1731832896070,50.9998,241.11,240.85,20.17779715]
[1731832896279,50.9998,241.11,240.87,20.17779715]
[1731832896498,2.9033,241.1,240.87,20.17779715]
[1731832896677,2.9033,241.1,240.89,20.17779715]
[1731832896866,2.9033,241.1,240.85,0.1]
[1731832896867,2.9033,241.1,240.87,20.17779715]
[1731832897065,20.0,241.09,240.85,20.27779715]
[1731832897280,20.0,241.09,240.85,20.17779715]
[1731832897682,20.0,241.09,240.87,20.17779715]
[1731832898276,20.0,241.09,240.89,20.17779715]
[1731832898766,2.9036,241.08,240.89,20.17779715]
[1731832899285,30.9998,241.21,241.0,23.776884]
[1731832899468,30.9998,241.21,241.02,23.776884]
[1731832899671,33.9018,241.21,241.03,20.17779715]
[1731832900970,33.9018,241.21,241.02,23.776884]
[1731832902387,33.9018,241.21,241.03,20.17779715]
[1731832903495,50.8189,241.43,241.2,20.17779715]
[1731832903669,2.8996,241.41,241.26,20.17779715]
[1731832903872,2.8996,241.41,241.28,20.17779715]
[1731832904176,2.8996,241.41,241.3,20.17779715]
[1731832904503,7.2445,241.57,241.39,20.17779715]
[1731832904670,7.2445,241.57,241.41,20.17779715]
[1731832904868,7.2445,241.57,241.35,0.1]
[1731832904869,6.48506285,241.57,241.33,32.58519196]
[1731832905088,6.48506285,241.57,241.35,32.58519196]
[1731832905286,6.48506285,241.57,241.37,32.58519196]
[1731832905790,0.79,241.6,241.43,32.58519196]
[1731832906098,7.27369857,241.6,241.43,32.58519196]
[1731832906300,0.79,241.6,241.48,32.58519196]
[1731832906470,0.79,241.6,241.44,13.2253]
[1731832906471,0.79,241.6,241.46,32.58519196]
[1731832906787,2.8974,241.59,241.46,32.58519196]
[1731832906995,3.6874,241.6,241.46,32.58519196]
[1731832907178,3.6874,241.6,241.4,32.58519196]
[1731832907578,3.6874,241.6,241.44,32.58519196]
[1731832907793,3.6874,241.6,241.4,32.58519196]
[1731832907977,3.6874,241.6,241.42,32.58519196]
[1731832908174,3.6874,241.6,241.43,23.776884]
[1731832908493,3.6874,241.6,241.42,32.58519196]
[1731832908691,3.6874,241.6,241.43,23.776884]
[1731832908999,3.6874,241.6,241.42,32.58519196]
[1731832909172,3.6874,241.6,241.43,23.776884]
[1731832909378,3.6874,241.6,241.4,32.58519196]
[1731832909599,10.9307,241.6,241.38,32.58519196]
[1731832909801,10.9307,241.6,241.42,32.58519196]
[1731832909977,41.9305,241.6,241.38,32.58519196]
[1731832910294,20.0,241.59,241.38,32.58519196]
[1731832910692,2.8975,241.58,241.38,32.58519196]
[1731832911075,20.0,241.57,241.38,32.58519196]
[1731832911274,20.0,241.57,241.36,32.58519196]
[1731832911479,20.0,241.57,241.11,20.59080062]
[1731832911480,20.08,241.55,241.26,32.58519196]
[1731832911676,23.776884,241.54,241.26,32.58519196]
[1731832911905,20.0,241.55,241.26,32.58519196]
[1731832912197,20.0,241.49,241.26,32.58519196]
[1731832912597,10.1456,241.48,241.26,32.58519196]
[1731832912797,20.0,241.47,241.24,32.58519196]
[1731832913882,20.0,241.45,241.24,32.58519196]
[1731832914601,20.0,241.45,241.27,32.58519196]
[1731832914897,20.0,241.45,241.25,32.58519196]
[1731832915101,20.0,241.45,241.27,32.58519196]
[1731832915682,2.8992,241.44,241.27,32.58519196]
[1731832916077,2.8992,241.44,241.28,23.776884]
[1731832916277,2.8992,241.44,241.27,32.58519196]
[1731832916475,2.8992,241.44,241.28,23.776884]
[1731832916691,2.8992,241.44,241.27,32.58519196]
[1731832916886,2.8992,241.44,241.25,32.58519196]
[1731832917086,2.8992,241.44,241.26,23.776884]
[1731832917377,2.8992,241.44,241.25,32.58519196]
[1731832917378,20.0,241.43,241.25,32.58519196]
[1731832917684,20.0,241.43,241.26,23.776884]
[1731832917885,2.8995,241.42,241.26,23.776884]
[1731832918185,2.8995,241.42,241.25,32.58519196]
[1731832918377,10.1482,241.42,241.23,32.58519196]
[1731832918699,2.8995,241.42,241.27,32.58519196]
[1731832918907,2.8995,241.42,241.19,23.776884]
[1731832919205,2.8995,241.42,241.26,23.776884]
[1731832919506,2.8995,241.42,241.25,23.776884]
[1731832919703,20.0,241.46,241.25,23.776884]
[1731832919704,2.8991,241.45,241.27,23.776884]
[1731832920701,20.0,241.44,241.26,32.58519196]
[1731832920913,13.137,241.43,241.24,32.58519196]
[1731832921120,20.0,241.42,241.18,32.58519196]
[1731832921798,20.0,241.4,241.18,32.58519196]
[1731832922701,20.0,241.4,241.2,32.58519196]
[1731832923004,10.1486,241.41,241.22,32.58519196]
[1731832923303,10.1486,241.41,241.21,23.776884]
[1731832923486,20.0,241.4,241.17,14.59068898]
[1731832923683,25.40131146,241.4,241.17,14.59068898]
[1731832924009,14.4981,241.41,241.08,32.58519196]
[1731832924010,20.0,241.38,241.08,32.58519196]
[1731832924210,20.0,241.36,241.08,32.58519196]
[1731832924497,20.0,241.34,241.08,32.58519196]
[1731832924906,20.0,241.32,241.06,32.58519196]
[1731832925084,20.0,241.32,241.12,32.58519196]
[1731832925484,20.0,241.35,241.12,32.58519196]
[1731832925709,20.0,241.35,241.1,32.58519196]
[1731832925884,24.6538,241.34,241.1,32.58519196]
[1731832926186,20.0,241.33,241.1,32.58519196]
[1731832926389,20.0,241.33,241.12,32.58519196]
[1731832926912,2.9007,241.32,241.16,32.58519196]
[1731832927113,2.9007,241.32,241.17,32.58519196]
[1731832927603,2.9007,241.32,241.15,32.58519196]
[1731832927782,2.9007,241.32,241.13,32.58519196]
[1731832927985,2.9007,241.32,241.15,32.58519196]
[1731832928401,2.9007,241.32,241.13,32.58519196]
[1731832928907,7.2517,241.32,241.13,4.147]
[1731832929087,7.2517,241.32,241.12,34.60904211]
[1731832929279,20.0,241.31,241.12,14.5155]
[1731832929496,7.2517,241.32,241.12,34.60904211]
[1731832930299,7.2517,241.32,241.14,20.09354211]
[1731832930681,7.2517,241.32,241.14,20.19354211]
[1731832931081,2.9005,241.33,241.2,20.09354211]
[1731832931302,2.9005,241.33,241.18,20.09354211]
[1731832931701,10.1519,241.33,241.16,20.09354211]
[1731832931893,10.1519,241.33,241.18,20.09354211]
[1731832932086,7.2514,241.33,241.16,20.09354211]
[1731832932611,7.2514,241.33,241.14,20.09354211]
[1731832932988,7.2514,241.33,241.13,4.1471]
[1731832932989,7.2514,241.33,241.17,20.09354211]
[1731832933403,7.2514,241.33,241.15,20.09354211]
[1731832933683,44.5629,241.49,241.26,20.09354211]
[1731832933909,7.2482,241.44,241.3,20.09354211]
[1731832934098,7.2482,241.44,241.26,20.09354211]
[1731832934602,7.2482,241.44,241.19,10.3652]
[1731832934796,0.09367462,241.37,241.15,20.09354211]
[1731832934993,0.09367462,241.37,241.03,0.1]
[1731832934994,0.09367462,241.37,241.11,20.09354211]
[1731832935303,23.776884,241.29,241.06,20.09354211]
[1731832935508,20.0,241.26,241.06,20.09354211]
[1731832935693,23.776884,241.25,241.06,20.09354211]
[1731832935887,44.6799,241.3,241.13,20.09354211]
[1731832936110,2.8991,241.45,241.25,20.09354211]
[1731832936309,2.8991,241.45,241.23,20.09354211]
[1731832936514,24.6426,241.45,241.23,20.09354211]
[1731832936693,24.6426,241.45,241.21,20.09354211]
[1731832937484,0.12549,241.44,241.21,20.09354211]
[1731832938117,20.12549,241.44,241.21,20.09354211]
[1731832938327,20.12549,241.42,241.19,30.45864211]
[1731832938620,0.09367462,241.41,241.17,24.23994211]
[1731832938825,0.09367462,241.41,241.17,20.09354211]
[1731832939030,0.09367462,241.41,241.17,24.23984211]
[1731832939031,23.902374,241.39,241.17,24.23984211]
[1731832939208,44.6799,241.43,241.23,20.09354211]
[1731832939406,44.6799,241.43,241.25,20.09354211]
[1731832939619,2.8995,241.42,241.25,20.09354211]
[1731832939823,2.8995,241.42,241.16,14.5131]
[1731832939824,10.1482,241.42,241.23,20.09354211]
[1731832940220,10.1482,241.42,241.16,14.5131]
[1731832940221,2.8995,241.42,241.27,20.09354211]
[1731832940908,2.8995,241.42,241.25,20.09354211]
[1731832941434,47.5793,241.43,241.31,4.144]
[1731832942230,44.6799,241.43,241.34,20.09354211]
[1731832942725,6.48695919,241.49,241.4,20.09354211]
[1731832942928,47.578,241.54,241.35,43.776884]
[1731832942929,44.6799,241.54,241.45,20.09354211]
[1731832943411,47.578,241.54,241.45,20.09354211]
[1731832943931,0.79,241.6,241.47,20.09354211]
[1731832944736,2.8974,241.59,241.42,20.09354211]
[1731832945617,2.8974,241.59,241.42,24.23544211]
[1731832946307,2.8974,241.59,241.42,34.59074211]
[1731832946508,0.79,241.6,241.45,20.09354211]
[1731832946827,3.6874,241.6,241.48,20.09354211]
[1731832947028,3.6874,241.6,241.46,20.09354211]
[1731832947829,3.6874,241.6,241.42,35.2079]
[1731832947830,3.6874,241.6,241.44,4.1417]
[1731832948038,44.6799,241.59,241.38,4.1426]
[1731832948212,23.776884,241.58,241.36,14.5009]
[1731832948605,23.776884,241.56,241.36,14.5009]
[1731832948822,68.456784,241.52,241.3,14.5043]
[1731832949124,20.0,241.47,241.3,14.5043]
[1731832949827,22.8991,241.45,241.25,4.1449]
[1731832950217,20.0,241.43,241.25,4.1449]
[1731832950414,20.0,241.41,241.25,4.1449]
[1731832950719,11.318184,241.45,241.24,10.3631]
[1731832950904,12.0377,241.44,241.24,10.3631]
[1731832951324,12.0377,241.44,241.27,32.62701548]
[1731832951512,12.0377,241.54,241.31,32.62701548]
[1731832951707,2.8981,241.53,241.32,14.5034]
[1731832952013,2.8981,241.53,241.33,23.776884]
[1731832952217,2.8981,241.53,241.33,56.40389948]
[1731832952410,12.0377,241.54,241.39,32.62701548]
[1731832952612,12.0377,241.54,241.4,23.776884]
[1731832952835,2.8974,241.59,241.36,32.62701548]
[1731832953024,2.8974,241.59,241.33,23.776884]
[1731832953328,10.241,241.59,241.32,35.2227]
[1731832953626,32.2778,241.55,241.32,14.5034]
[1731832953824,24.027864,241.53,241.32,14.5034]
[1731832954022,20.0,241.52,241.32,14.5034]
[1731832954336,0.25098,241.51,241.32,14.5034]
[1731832954636,20.0,241.53,241.32,14.5034]
[1731832954930,2.8983,241.52,241.32,14.5034]
[1731832955135,0.25098,241.51,241.32,14.5034]
[1731832955431,20.25098,241.51,241.32,14.5034]
[1731832956231,2.8985,241.5,241.32,10.3596]
[1731832957113,12.1445,241.49,241.32,10.3596]
[1731832957619,19.5,241.48,241.29,4.1443]
[1731832957819,24.22153862,241.47,241.26,10.3619]
[1731832958014,31.8621,241.46,241.26,14.5068]
[1731832958209,31.8621,241.46,241.26,10.3619]
[1731832958410,0.25098,241.44,241.26,10.3619]
[1731832958629,2.8991,241.45,241.26,10.3619]
[1731832959215,2.8991,241.45,241.27,32.62701548]
[1731832959416,2.8991,241.45,241.26,10.3619]
[1731832959937,22.8991,241.45,241.26,14.5068]
[1731832961332,22.8991,241.45,241.27,32.62701548]
[1731832961532,22.8991,241.45,241.25,32.62701548]
[1731832961711,22.8991,241.45,241.23,23.776884]
[1731832961917,22.8991,241.45,241.24,32.62701548]
[1731832962839,22.8991,241.45,241.25,14.5076]
[1731832963208,22.8991,241.45,241.26,32.62701548]
[1731832964423,22.8991,241.45,241.22,20.7279]
[1731832964424,31.8621,241.46,241.34,32.62701548]
[1731832964735,34.7612,241.46,241.34,32.62701548]